bitfinex/quotes_SOLUSD_20241107
["timestamp","ask_amount","ask_price","bid_price","bid_amount"]
[1730941560896,23.902374,187.55,187.42,6.5881]
[1730941560897,23.902374,187.55,187.49,0.1]
[1730941561396,5.56427142,187.56,187.48,0.1]
[1730941561397,23.902374,187.56,187.48,0.1]
[1730941561596,23.902374,187.56,187.49,0.1]
[1730941561894,23.902374,187.56,187.48,0.1]
[1730941562094,23.902374,187.56,187.47,0.1]
[1730941562095,23.902374,187.54,187.47,0.1]
[1730941562473,23.902374,187.54,187.48,0.1]
[1730941563180,23.902374,187.54,187.51,0.1]
[1730941563474,0.12549,187.54,187.51,0.1]
[1730941563678,23.902374,187.55,187.52,0.1]
[1730941563879,0.5702677,187.57,187.55,0.1]
[1730941564299,0.5702677,187.57,187.46,15.3235]
[1730941564300,0.5702677,187.57,187.56,0.1]
[1730941566293,0.6957577,187.57,187.56,0.1]
[1730941568001,0.12549,187.56,187.54,0.1]
[1730941568183,23.902374,187.56,187.54,0.1]
[1730941568383,0.12549,187.56,187.54,0.1]
[1730941568690,0.12549,187.56,187.55,0.1]
[1730941569107,0.5702677,187.57,187.56,0.1]
[1730941570000,23.902374,187.56,187.53,0.1]
[1730941570199,23.902374,187.56,187.55,0.1]
[1730941570498,0.12549,187.56,187.55,0.1]
[1730941570923,0.12549,187.56,187.53,0.1]
[1730941571091,23.902374,187.56,187.49,0.1]
[1730941571420,23.902374,187.56,187.51,0.1]
[1730941571587,23.902374,187.56,187.52,0.1]
[1730941571890,23.902374,187.56,187.51,0.1]
[1730941572092,23.902374,187.56,187.52,0.1]
[1730941573010,23.902374,187.56,187.51,0.1]
[1730941573307,23.902374,187.56,187.41,22.4025]
[1730941573308,29.234074,187.56,187.47,0.1]
[1730941573513,29.334074,187.56,187.46,0.1]
[1730941573682,29.334074,187.56,187.47,1.43303703]
[1730941573888,29.334074,187.56,187.46,0.1]
[1730941574083,29.334074,187.56,187.47,1.43310907]
[1730941574391,29.334074,187.56,187.47,0.1]
[1730941575222,0.12549,187.52,187.47,0.1]
[1730941575511,0.12549,187.5,187.46,0.1]
[1730941575688,23.902374,187.48,187.43,0.1]
[1730941575891,23.902374,187.48,187.44,1.33327477]
[1730941576090,23.902374,187.48,187.36,15.9086]
[1730941576091,23.902374,187.46,187.42,0.1]
[1730941576388,23.902374,187.44,187.42,0.1]
[1730941577511,23.902374,187.44,187.43,0.1]
[1730941578311,16.2101,187.47,187.44,0.1]
[1730941578494,158.4,187.49,187.46,0.1]
[1730941578693,0.12549,187.51,187.46,0.1]
[1730941578907,0.12549,187.51,187.47,0.1]
[1730941579223,164.5286,187.53,187.49,0.1]
[1730941579512,7.1466677,187.57,187.51,0.1]
[1730941579699,7.1466677,187.57,187.43,6.2259]
[1730941579700,7.1466677,187.57,187.53,0.1]
[1730941579888,7.1466677,187.57,187.52,0.1]
[1730941580086,5.69069267,187.56,187.51,0.1]
[1730941580303,5.56520267,187.56,187.51,0.1]
[1730941580507,0.12549,187.55,187.5,0.1]
[1730941580935,5.56520267,187.56,187.5,0.1]
[1730941581090,20.0,187.55,187.5,0.1]
[1730941581595,0.12549,187.54,187.49,0.1]
[1730941582016,0.12549,187.54,187.52,0.1]
[1730941582228,23.902374,187.54,187.5,0.1]
[1730941582427,23.902374,187.54,187.49,0.1]
[1730941583333,23.902374,187.54,187.5,0.1]
[1730941583826,23.902374,187.54,187.49,0.1]
[1730941584217,5.56520267,187.56,187.43,6.2259]
[1730941584218,23.902374,187.52,187.51,0.1]
[1730941584628,23.902374,187.52,187.49,0.1]
[1730941584941,23.902374,187.52,187.51,0.1]
[1730941587339,5.56520267,187.56,187.54,0.1]
[1730941587819,0.12549,187.55,187.54,0.1]
[1730941588209,5.56520267,187.56,187.54,0.1]
[1730941588528,5.56520267,187.56,187.47,19.66740356]
[1730941588529,5.56520267,187.56,187.55,0.1]
[1730941588826,5.69069267,187.56,187.55,0.1]
[1730941589208,0.12549,187.55,187.54,0.1]
[1730941590337,5.56520267,187.56,187.54,0.1]
[1730941590636,0.12549,187.55,187.54,0.1]
[1730941591431,0.5702677,187.57,187.56,0.1]
[1730941593132,0.12549,187.56,187.55,0.1]
[1730941593344,23.902374,187.56,187.54,0.1]
[1730941593933,23.902374,187.56,187.53,0.1]
[1730941594135,23.902374,187.56,187.55,0.1]
[1730941594304,23.902374,187.56,187.53,0.1]
[1730941594504,23.902374,187.56,187.55,0.1]
[1730941595119,23.902374,187.56,187.54,0.1]
[1730941596036,23.902374,187.56,187.55,0.1]
[1730941597215,0.5702677,187.57,187.55,0.1]
[1730941597430,0.5702677,187.57,187.56,0.1]
[1730941597631,0.6957577,187.57,187.56,0.1]
[1730941598534,24.4726417,187.57,187.56,0.1]
[1730941599045,0.5702677,187.57,187.56,0.1]
[1730941599708,0.6957577,187.57,187.56,0.1]
[1730941600628,0.5702677,187.57,187.56,0.1]
[1730941603615,0.5702677,187.57,187.56,16.1408]
[1730941606428,0.5702677,187.57,187.56,36.1408]
[1730941607134,0.5702677,187.57,187.56,55.80820356]
[1730941608463,0.5702677,187.57,187.56,15.9408]
[1730941609641,0.5702677,187.57,187.56,0.1]
[1730941609838,0.5702677,187.59,187.56,0.1]
[1730941610335,0.5702677,187.59,187.58,0.1]
[1730941611916,0.5702677,187.59,187.58,12.37412865]
[1730941612320,0.5702677,187.59,187.58,0.1]
[1730941615046,0.5702677,187.59,187.58,12.37412865]
[1730941615340,0.5702677,187.59,187.58,12.47412865]
[1730941615537,0.5702677,187.59,187.58,12.37412865]
[1730941616330,0.5702677,187.59,187.58,0.1]
[1730941617322,0.6957577,187.59,187.58,0.1]
[1730941621166,0.5702677,187.59,187.58,0.1]
[1730941621346,0.5702677,187.59,187.58,19.74727013]
[1730941621548,0.5702677,187.59,187.58,19.84727013]
[1730941621850,0.5702677,187.59,187.58,0.1]
[1730941623360,0.6957577,187.59,187.58,0.1]
[1730941625059,0.12549,187.58,187.57,0.1]
[1730941626355,23.902374,187.58,187.57,0.1]
[1730941626546,23.902374,187.58,187.55,0.1]
[1730941626866,23.902374,187.56,187.55,0.1]
[1730941627071,23.902374,187.56,187.53,0.1]
[1730941627270,24.3471517,187.59,187.58,0.1]
[1730941627445,44.3471517,187.59,187.58,0.1]
[1730941627772,44.4726417,187.59,187.58,0.1]
[1730941627959,24.4726417,187.59,187.58,0.1]
[1730941628274,0.6957577,187.59,187.58,0.1]
[1730941628480,0.5702677,187.59,187.58,0.1]
[1730941628952,0.6957577,187.59,187.58,0.1]
[1730941629841,24.4726417,187.59,187.58,0.1]
[1730941630156,23.902374,187.58,187.55,0.1]
[1730941630557,23.902374,187.58,187.57,0.1]
[1730941631282,0.12549,187.58,187.57,0.1]
[1730941633278,0.5702677,187.59,187.58,0.1]
[1730941634547,0.5702677,187.59,187.58,19.74727013]
[1730941634759,16.2759,187.72,187.68,0.1]
[1730941634958,16.2759,187.72,187.7,0.1]
[1730941635474,0.12549,187.7,187.68,0.1]
[1730941635677,0.12549,187.7,187.59,26.01587013]
[1730941635678,5.56052375,187.71,187.69,0.1]
[1730941635858,5.56052375,187.71,187.7,0.1]
[1730941636359,5.68601375,187.71,187.7,0.1]
[1730941636552,5.56052375,187.71,187.7,0.1]
[1730941636978,5.56052375,187.71,187.68,0.1]
[1730941637146,0.12549,187.7,187.68,0.1]
[1730941637355,20.12549,187.7,187.67,0.1]
[1730941637675,20.12549,187.7,187.68,0.1]
[1730941637879,20.12549,187.7,187.67,0.1]
[1730941639564,20.12549,187.7,187.69,0.1]
[1730941640167,20.12549,187.7,187.68,0.1]
[1730941640372,20.12549,187.7,187.67,0.1]
[1730941640562,20.12549,187.7,187.68,0.1]
[1730941640763,20.12549,187.7,187.67,0.1]
[1730941641585,25.45319,187.7,187.62,0.1]
[1730941641898,20.12549,187.68,187.6,0.1]
[1730941642060,20.12549,187.68,187.59,0.1]
[1730941642265,20.12549,187.68,187.62,0.1]
[1730941642597,20.12549,187.68,187.52,12.2690998]
[1730941642598,25.45389,187.68,187.61,0.1]
[1730941642776,25.55389,187.68,187.6,0.1]
[1730941643164,0.1,187.67,187.59,0.1]
[1730941643387,20.12549,187.65,187.58,0.1]
[1730941643993,0.1,187.63,187.55,0.1]
[1730941644295,20.22549,187.62,187.55,0.1]
[1730941644491,5.3302,187.61,187.54,0.1]
[1730941644686,5.3302,187.61,187.46,16.0049]
[1730941644687,20.22549,187.6,187.53,0.1]
[1730941645083,20.22549,187.6,187.52,0.1]
[1730941645386,20.12549,187.57,187.52,0.1]
[1730941646266,20.22549,187.57,187.48,0.1]
[1730941646589,20.12549,187.53,187.46,0.1]
[1730941646803,20.12549,187.53,187.5,0.1]
[1730941647293,6.1554,187.58,187.52,0.1]
[1730941647475,20.0,187.57,187.53,0.1]
[1730941647796,0.12549,187.56,187.54,0.1]
[1730941648174,20.0,187.57,187.55,0.1]
[1730941648692,0.12549,187.56,187.54,0.1]
[1730941648902,0.12549,187.56,187.53,0.1]
[1730941649074,0.12549,187.56,187.55,0.1]
[1730941650499,0.12549,187.56,187.53,0.1]
[1730941650673,0.12549,187.56,187.44,0.2]
[1730941650674,0.12549,187.56,187.55,0.1]
[1730941651074,20.0,187.57,187.55,0.1]
[1730941651279,20.0,187.57,187.47,19.66246768]
[1730941651280,6.6013,187.63,187.57,0.1]
[1730941651469,6.6013,187.63,187.58,0.1]
[1730941651670,0.12549,187.62,187.58,0.1]
[1730941651892,5.56367278,187.62,187.61,0.1]
[1730941652388,5.56367278,187.62,187.6,0.1]
[1730941652598,5.56367278,187.62,187.61,0.1]
[1730941652783,5.68916278,187.62,187.6,0.1]
[1730941652989,5.68916278,187.62,187.61,0.1]
[1730941653186,5.56367278,187.62,187.61,0.1]
[1730941653372,5.56367278,187.62,187.6,0.1]
[1730941653675,5.68916278,187.62,187.61,0.1]
[1730941653882,5.56367278,187.62,187.61,0.1]
[1730941654677,20.0,187.67,187.61,0.1]
[1730941654878,0.12549,187.66,187.6,0.1]
[1730941655175,0.12549,187.66,187.54,0.1]
[1730941655176,5.56231748,187.64,187.62,0.1]
[1730941655374,5.68780748,187.64,187.63,0.1]
[1730941655602,5.56231748,187.64,187.63,0.1]
[1730941656191,21.9711,187.72,187.68,0.1]
[1730941656375,0.5702677,187.76,187.71,0.1]
[1730941656996,0.12549,187.74,187.71,0.1]
[1730941657908,20.12549,187.74,187.71,0.1]
[1730941658593,5.56001053,187.75,187.71,0.1]
[1730941658792,5.56001053,187.75,187.73,0.1]
[1730941659503,5.56001053,187.75,187.74,0.1]
[1730941659804,0.5702677,187.76,187.74,0.1]
[1730941660005,0.5702677,187.76,187.75,0.1]
[1730941662897,0.5702677,187.76,187.75,19.76246768]
[1730941663094,0.5702677,187.76,187.75,0.1]
[1730941664088,22.7682,187.91,187.88,0.1]
[1730941664485,22.7682,187.91,187.87,0.1]
[1730941664705,22.7682,187.91,187.88,0.1]
[1730941665017,0.12549,187.9,187.88,0.1]
[1730941665179,1.38986163,187.92,187.91,0.1]
[1730941665507,0.5702677,187.94,187.92,0.1]
[1730941667002,0.12549,187.93,187.92,0.1]
[1730941667511,0.5702677,187.94,187.91,0.1]
[1730941667714,0.5702677,187.94,187.92,0.1]
[1730941668106,0.12549,187.93,187.91,0.1]
[1730941668498,0.12549,187.93,187.89,0.1]
[1730941668802,0.12549,187.93,187.88,0.1]
[1730941669511,25.8912677,187.94,187.89,0.1]
[1730941669512,20.0,187.92,187.89,0.1]
[1730941669681,20.0,187.92,187.88,0.1]
[1730941669881,20.0,187.92,187.86,0.1]
[1730941670189,0.12549,187.91,187.86,0.1]
[1730941670703,0.12549,187.91,187.8,6.6065]
[1730941670704,0.12549,187.91,187.88,0.1]
[1730941671412,0.5702677,187.94,187.88,0.1]
[1730941671621,20.5702677,187.94,187.88,0.1]
[1730941671797,0.12549,187.93,187.88,0.1]
[1730941672490,0.12549,187.93,187.86,0.1]
[1730941672804,0.12549,187.93,187.85,0.1]
[1730941673104,0.12549,187.93,187.87,0.1]
[1730941673607,0.12549,187.93,187.85,0.1]
[1730941673813,0.12549,187.91,187.88,0.1]
[1730941673982,0.12549,187.91,187.89,0.1]
[1730941674187,0.5702677,187.94,187.93,0.1]
[1730941674483,0.5702677,187.94,187.84,0.1]
[1730941674484,0.6957577,187.94,187.92,0.1]
[1730941674684,0.6957577,187.94,187.82,0.1]
[1730941674904,0.6957577,187.94,187.83,0.1]
[1730941674905,0.5702677,187.94,187.83,0.1]
[1730941675492,0.12549,187.93,187.81,0.1]
[1730941675694,0.12549,187.93,187.8,6.6065]
[1730941675908,0.12549,187.93,187.8,6.8065]
[1730941676209,5.55435666,187.92,187.8,6.6065]
[1730941676408,5.55435666,187.92,187.83,0.1]
[1730941676620,5.55435666,187.92,187.81,0.1]
[1730941677289,5.55435666,187.92,187.86,0.1]
[1730941677490,5.55435666,187.92,187.85,0.2]
[1730941677708,0.5702677,187.94,187.85,0.2]
[1730941678494,0.5702677,187.94,187.86,15.422]
[1730941679799,0.12549,187.93,187.82,0.1]
[1730941680111,0.12549,187.93,187.81,15.522]
[1730941680316,0.12549,187.93,187.81,15.622]
[1730941680516,0.12549,187.93,187.81,15.422]
[1730941680694,0.12549,187.93,187.81,15.522]
[1730941681013,20.12549,187.93,187.8,0.2]
[1730941681198,0.1,187.92,187.76,21.5194]
[1730941681602,0.12549,187.9,187.76,21.5194]
[1730941681801,20.22549,187.9,187.76,21.5194]
[1730941682105,20.12549,187.9,187.76,21.5194]
[1730941682410,5.3214,187.92,187.77,0.1]
[1730941682610,0.12549,187.91,187.77,0.2]
[1730941682813,0.12549,187.91,187.78,0.1]
[1730941683294,20.12549,187.91,187.76,21.5194]
[1730941683707,0.12549,187.89,187.76,21.6194]
[1730941683903,0.12549,187.89,187.76,21.5194]
[1730941684105,0.12549,187.89,187.73,0.1]
[1730941684590,0.12549,187.89,187.75,0.1]
[1730941684796,0.12549,187.89,187.74,0.2]
[1730941684988,0.12549,187.89,187.74,0.1]
[1730941685225,0.22549,187.9,187.73,0.1]
[1730941685394,0.12549,187.87,187.73,0.1]
[1730941685890,0.12549,187.87,187.73,0.2]
[1730941686095,0.12549,187.88,187.73,0.2]
[1730941686296,20.12549,187.88,187.72,0.1]
[1730941686598,20.12549,187.88,187.73,0.2]
[1730941687121,25.44809,187.88,187.73,0.2]
[1730941687299,0.12549,187.9,187.72,0.2]
[1730941687917,0.12549,187.88,187.71,22.6537]
[1730941688292,0.12549,187.88,187.72,19.86246768]
[1730941688523,0.12549,187.88,187.75,19.86246768]
[1730941688717,5.55696138,187.89,187.77,0.2]
[1730941688901,5.55696138,187.89,187.78,0.2]
[1730941689106,5.55696138,187.89,187.78,19.86246768]
[1730941689310,5.55696138,187.89,187.78,0.2]
[1730941689697,5.55696138,187.89,187.79,0.1]
[1730941689897,5.55696138,187.89,187.78,19.86246768]
[1730941690191,5.55696138,187.89,187.79,0.1]
[1730941690395,5.55696138,187.89,187.81,15.6599]
[1730941690623,0.5702677,187.94,187.81,15.6599]
[1730941690794,0.12549,187.93,187.81,15.6599]
[1730941691422,0.5702677,187.94,187.81,15.6599]
[1730941691802,0.12549,187.93,187.81,15.6599]
[1730941692818,0.12549,187.93,187.76,16.3292]
[1730941693025,20.12549,187.93,187.76,16.3292]
[1730941693196,0.12549,187.91,187.77,0.1]
[1730941693401,0.12549,187.91,187.76,16.3292]
[1730941693812,20.12549,187.91,187.76,16.3292]
[1730941694195,0.1,187.9,187.71,21.4534]
[1730941694399,0.1,187.88,187.71,21.5534]
[1730941694623,0.1,187.88,187.71,21.6534]
[1730941695132,0.1,187.88,187.71,41.31586768]
[1730941695423,20.0,187.87,187.73,0.1]
[1730941695606,0.12549,187.86,187.72,0.1]
[1730941696322,0.12549,187.86,187.71,21.4534]
[1730941696524,29.225574,187.86,187.71,21.4534]
[1730941696913,29.225574,187.86,187.71,21.5534]
[1730941697121,23.902374,187.86,187.71,21.5534]
[1730941697414,23.902374,187.86,187.72,0.1]
[1730941697729,23.902374,187.86,187.71,21.6534]
[1730941697924,23.902374,187.86,187.72,0.1]
[1730941699533,23.902374,187.86,187.74,0.1]
[1730941700332,12.01496865,187.91,187.76,0.1]
[1730941700517,0.12549,187.9,187.76,0.1]
[1730941700910,0.12549,187.9,187.75,0.2]
[1730941701230,5.3214,187.93,187.75,19.76246768]
[1730941701447,0.5702677,187.94,187.81,0.1]
[1730941701604,0.5702677,187.94,187.83,0.2]
[1730941702108,0.5702677,187.94,187.83,0.1]
[1730941703038,0.5702677,187.94,187.81,19.76246768]
[1730941703039,0.5702677,187.94,187.82,0.1]
[1730941703327,0.5702677,187.94,187.83,0.1]
[1730941703834,0.5702677,187.94,187.83,0.2]
[1730941705015,0.5702677,187.94,187.84,0.1]
[1730941706043,0.5702677,187.94,187.84,0.2]
[1730941706224,0.5702677,187.94,187.85,0.2]
[1730941706623,0.5702677,187.94,187.85,0.1]
[1730941706842,0.5702677,187.94,187.8,0.2]
[1730941706843,23.902374,187.93,187.8,0.2]
[1730941707010,23.902374,187.93,187.81,0.1]
[1730941707220,23.902374,187.93,187.8,0.1]
[1730941707540,23.902374,187.93,187.79,22.3501]
[1730941707906,23.902374,187.93,187.79,22.2501]
[1730941708310,23.902374,187.93,187.8,0.1]
[1730941708916,23.902374,187.93,187.79,22.2501]
[1730941709117,23.902374,187.93,187.79,22.3501]
[1730941709319,23.902374,187.93,187.8,0.1]
[1730941709843,23.902374,187.93,187.79,22.2501]
[1730941710243,23.902374,187.91,187.79,22.2501]
[1730941710717,23.902374,187.91,187.75,15.099]
[1730941710923,16.1157,187.92,187.75,15.099]
[1730941710924,23.902374,187.89,187.75,15.099]
[1730941711128,23.902374,187.89,187.75,15.199]
[1730941711540,23.902374,187.89,187.75,15.099]
[1730941712048,16.1157,187.92,187.78,0.1]
[1730941712223,16.1157,187.92,187.79,0.1]
[1730941712724,16.1157,187.92,187.79,0.2]
[1730941712919,6.9572677,187.94,187.81,0.1]
[1730941713429,6.9572677,187.94,187.8,0.1]
[1730941713947,0.12549,187.93,187.77,19.86246768]
[1730941714244,20.12549,187.93,187.75,15.199]
[1730941714448,0.12549,187.91,187.76,0.1]
[1730941714625,0.12549,187.91,187.78,0.1]
[1730941715142,0.12549,187.91,187.78,0.2]
[1730941715325,23.776884,187.93,187.79,0.1]
[1730941715520,23.776884,187.93,187.8,0.2]
[1730941715747,23.776884,187.93,187.8,0.1]
[1730941715943,6.9572677,187.94,187.81,0.2]
[1730941716120,6.9572677,187.94,187.83,0.1]
[1730941716326,0.5702677,187.94,187.83,6.1783]
[1730941717124,5.55360931,187.93,187.83,6.1783]
[1730941717525,5.55360931,187.93,187.83,6.0783]
[1730941722342,5.55360931,187.93,187.83,6.1783]
[1730941722536,5.55360931,187.93,187.83,6.0783]
[1730941723563,23.776884,187.92,187.8,0.1]
[1730941723730,0.12549,187.91,187.79,6.094]
[1730941724964,23.776884,187.92,187.79,6.194]
[1730941725134,5.55360931,187.93,187.82,12.34003738]
[1730941725471,5.55360931,187.93,187.86,0.1]
[1730941725644,5.55360931,187.93,187.85,12.44003738]
[1730941725835,5.55360931,187.93,187.84,16.0676]
[1730941726053,0.5702677,187.94,187.84,15.8676]
[1730941727161,0.5702677,187.94,187.83,0.1]
[1730941727456,0.5702677,187.94,187.82,20.2]
[1730941727663,0.5702677,187.94,187.83,0.1]
[1730941728336,0.5702677,187.94,187.82,20.2]
[1730941728666,0.5702677,187.94,187.86,0.1]
[1730941729642,0.5702677,187.94,187.85,0.1]
[1730941729848,0.5702677,187.94,187.86,0.1]
[1730941730046,0.5702677,187.94,187.88,15.6143]
[1730941730642,0.5702677,187.94,187.85,0.2]
[1730941730847,0.5702677,187.94,187.85,0.1]
[1730941731360,0.5702677,187.94,187.86,0.1]
[1730941731540,0.5702677,187.94,187.84,35.6143]
[1730941731854,0.5702677,187.94,187.86,0.1]
[1730941732058,0.5702677,187.94,187.85,0.1]
[1730941732240,0.5702677,187.94,187.86,0.1]
[1730941732937,0.5702677,187.94,187.85,0.1]
[1730941733136,0.5702677,187.94,187.86,0.1]
[1730941733768,0.5702677,187.94,187.85,0.1]
[1730941733938,0.5702677,187.94,187.84,35.6143]
[1730941733939,0.5702677,187.94,187.84,35.7143]
[1730941734266,0.5702677,187.94,187.86,0.1]
[1730941734654,0.5702677,187.94,187.84,47.95433738]
[1730941734840,0.5702677,187.94,187.85,0.1]
[1730941735041,0.5702677,187.94,187.86,0.1]
[1730941736448,0.5702677,187.94,187.85,0.2]
[1730941736765,0.5702677,187.94,187.86,12.34003738]
[1730941737074,0.5702677,187.94,187.87,12.34003738]
[1730941737248,0.5702677,187.94,187.9,12.24003738]
[1730941737449,0.5702677,187.94,187.9,12.44003738]
[1730941737758,0.5702677,187.94,187.93,32.34003738]
[1730941737941,0.5702677,187.94,187.93,20.1]
[1730941738372,0.5702677,187.94,187.92,15.9264]
[1730941738590,0.5702677,187.94,187.88,6.2896]
[1730941738743,0.5702677,187.94,187.87,15.2074]
[1730941739142,0.5702677,187.94,187.83,6.3706]
[1730941739649,0.5702677,187.94,187.83,6.5706]
[1730941739851,0.5702677,187.94,187.84,0.1]
[1730941740057,0.5702677,187.94,187.83,6.5706]
[1730941740579,0.5702677,187.94,187.84,20.0]
[1730941741769,0.5702677,187.94,187.83,6.3706]
[1730941741770,0.5702677,187.94,187.83,6.4706]
[1730941741976,23.776884,187.93,187.83,6.3706]
[1730941742149,23.776884,187.93,187.82,15.2074]
[1730941742671,23.776884,187.93,187.83,0.1]
[1730941743474,0.5702677,187.94,187.83,0.1]
[1730941743682,0.5702677,187.94,187.83,12.44003738]
[1730941743885,0.5702677,187.94,187.83,0.2]
[1730941744477,0.5702677,187.94,187.84,0.1]
[1730941745653,23.776884,187.93,187.82,15.2074]
[1730941745972,23.776884,187.93,187.79,22.0095]
[1730941746158,0.12549,187.92,187.79,6.2281]
[1730941746361,23.902374,187.9,187.77,0.1]
[1730941746565,23.902374,187.9,187.78,12.34003738]
[1730941746967,23.902374,187.9,187.77,0.1]
[1730941747180,23.902374,187.9,187.77,0.2]
[1730941747364,23.776884,187.9,187.79,0.1]
[1730941747569,23.776884,187.9,187.79,12.34003738]
[1730941748079,23.776884,187.9,187.79,0.1]
[1730941748491,23.776884,187.9,187.79,12.34003738]
[1730941748855,23.776884,187.9,187.79,0.1]
[1730941749054,23.776884,187.9,187.79,12.34003738]
[1730941749582,12.04889584,187.91,187.77,20.0]
[1730941749583,5.55439584,187.91,187.82,12.34003738]
[1730941749878,0.5702677,187.94,187.83,12.34003738]
[1730941750078,0.5702677,187.94,187.84,12.34003738]
[1730941750381,0.5702677,187.94,187.88,12.34003738]
[1730941750683,0.5702677,187.94,187.9,20.1]
[1730941750862,0.5702677,187.94,187.89,20.0]
[1730941751562,0.5702677,187.94,187.9,12.24003738]
[1730941751762,0.5702677,187.94,187.89,12.34003738]
[1730941751976,0.5702677,187.94,187.89,20.1]
[1730941753387,0.5702677,187.94,187.87,32.24003738]
[1730941753762,0.5702677,187.94,187.88,12.34003738]
[1730941753960,0.5702677,187.94,187.89,12.34003738]
[1730941754478,0.5702677,187.94,187.91,12.34003738]
[1730941754788,0.5702677,187.94,187.93,12.24003738]
[1730941754995,0.5702677,187.94,187.92,0.1]
[1730941755197,0.5702677,187.94,187.92,20.1]
[1730941755371,0.5702677,187.94,187.92,12.34003738]
[1730941755684,0.5702677,187.94,187.92,0.1]
[1730941755898,0.5702677,187.94,187.92,20.1]
[1730941756263,0.5702677,187.94,187.89,12.24003738]
[1730941756580,0.5702677,187.94,187.9,20.0]
[1730941757102,0.5702677,187.94,187.87,12.24003738]
[1730941757103,0.5702677,187.94,187.88,20.0]
[1730941757286,0.0702677,187.94,187.89,20.0]
[1730941757470,0.0702677,187.94,187.9,20.0]
[1730941758085,0.0702677,187.94,187.89,20.0]
[1730941758385,0.0702677,187.94,187.91,12.24003738]
[1730941758610,0.0702677,187.94,187.9,12.24003738]
[1730941758788,0.0702677,187.94,187.9,12.34003738]
[1730941759474,0.0702677,187.94,187.89,12.24003738]
[1730941759793,0.0702677,187.94,187.92,12.24003738]
[1730941759983,0.0702677,187.94,187.93,12.24003738]
[1730941760184,0.0702677,187.94,187.93,20.1]
[1730941760375,0.0702677,187.94,187.93,32.34003738]
[1730941761170,0.0702677,187.94,187.93,39.10473738]
[1730941761379,0.6702677,188.13,187.97,0.1]
[1730941761380,6.212,188.11,187.97,0.1]
[1730941761679,11.76112771,188.11,187.96,12.24003738]
[1730941761881,0.12549,188.1,187.94,12.44003738]
[1730941762195,0.12549,188.1,187.95,32.24003738]
[1730941762502,0.12549,188.1,187.96,12.24003738]
[1730941762793,23.902374,188.1,187.97,12.24003738]
[1730941762967,23.902374,188.1,187.96,12.24003738]
[1730941763382,23.902374,188.1,187.95,19.55042478]
[1730941763786,23.902374,188.1,187.95,19.65042478]
[1730941763994,23.902374,188.1,187.95,19.55042478]
[1730941764390,23.902374,188.1,187.94,39.65042478]
[1730941764566,23.902374,188.1,187.94,39.75042478]
[1730941764767,23.902374,188.1,187.96,19.55042478]
[1730941765194,23.902374,188.1,187.94,39.75042478]
[1730941765390,23.902374,188.1,187.95,19.55042478]
[1730941765990,23.902374,188.1,187.94,20.2]
[1730941765991,23.902374,188.1,187.96,19.55042478]
[1730941766498,23.902374,188.1,187.95,19.55042478]
[1730941766677,23.902374,188.1,187.96,19.55042478]
[1730941767201,11.76112771,188.11,187.98,19.55042478]
[1730941767495,11.76112771,188.11,187.97,19.65042478]
[1730941767794,0.12549,188.1,187.94,39.55042478]
[1730941768296,0.12549,188.1,187.93,21.9934]
[1730941768470,23.902374,188.1,187.94,19.55042478]
[1730941768998,23.902374,188.1,187.93,41.54382478]
[1730941769503,29.218674,188.1,187.93,21.9934]